bitfinex/quotes_ETHUSD_20230110
["timestamp","ask_amount","ask_price","bid_price","bid_amount"]
[1673376054160,32.80071554,1338.7,1338.6,6.03e-06]
[1673376054387,33.78283455,1338.7,1338.6,6.03e-06]
[1673376055252,33.78283455,1338.7,1338.3,0.04222923]
[1673376056289,14.94208,1338.5,1338.3,0.04222923]
[1673376056500,13.88160795,1338.5,1338.3,0.04222923]
[1673376057065,21.35264795,1338.5,1338.3,0.04222923]
[1673376057353,22.10476696,1338.5,1338.3,0.04222923]
[1673376058180,14.63372696,1338.5,1338.3,0.04222923]
[1673376058408,8.27521901,1338.5,1338.3,0.88480588]
[1673376060448,0.80411901,1338.5,1338.3,0.88480588]
[1673376060680,8.22346901,1338.5,1338.3,0.88480588]
[1673376060982,8.27546901,1338.5,1338.3,0.88480588]
[1673376061509,15.74619901,1338.5,1338.3,0.88480588]
[1673376061722,0.80411901,1338.5,1338.3,0.88480588]
[1673376061982,0.75211901,1338.5,1338.3,0.88480588]
[1673376062556,23.16530901,1338.5,1338.3,0.04222923]
[1673376062809,23.21730901,1338.5,1338.3,0.04222923]
[1673376065305,28.91336965,1338.5,1338.3,0.04222923]
[1673376066136,2.5,1338.4,1338.3,0.04222923]
[1673376066387,28.05613697,1338.4,1338.3,0.04222923]
[1673376066702,28.86025598,1338.4,1338.3,0.04222923]
[1673376067303,33.99591662,1338.4,1338.3,0.04222923]
[1673376067544,37.78641662,1338.4,1338.3,0.04222923]
[1673376067967,26.51715598,1338.4,1338.3,0.04222923]
[1673376068182,26.28715598,1338.4,1338.3,0.04222923]
[1673376068547,33.75875598,1338.4,1338.3,0.04222923]
[1673376069634,33.75875598,1338.4,1338.3,9.23e-06]
[1673376069635,38.89441662,1338.4,1338.3,9.23e-06]
[1673376069849,42.79913508,1338.4,1338.3,9.23e-06]
[1673376070037,38.37229761,1338.4,1338.3,9.23e-06]
[1673376070457,42.04523809,1338.4,1338.3,9.23e-06]
[1673376070717,42.7973571,1338.4,1338.3,9.23e-06]
[1673376070903,42.8600471,1338.4,1338.3,9.23e-06]
[1673376071340,56.5560471,1338.4,1338.3,9.23e-06]
[1673376071576,6.99,1338.3,1338.2,6.45e-06]
[1673376071789,60.52317578,1338.3,1338.2,6.45e-06]
[1673376072012,61.27529479,1338.3,1338.2,6.45e-06]
[1673376072330,52.88129834,1338.3,1338.2,6.45e-06]
[1673376072641,51.54529834,1338.3,1338.2,6.45e-06]
[1673376073315,2.5,1338.2,1338.1,4.95e-06]
[1673376073565,44.26635047,1338.2,1338.0,2.17e-06]
[1673376073785,5.98895064,1338.1,1338.0,2.17e-06]
[1673376074107,31.46079064,1338.1,1338.0,2.17e-06]
[1673376074334,35.41098169,1338.1,1338.0,2.17e-06]
[1673376074538,46.26878169,1338.1,1338.0,2.17e-06]
[1673376075051,37.22750169,1338.1,1338.0,2.17e-06]
[1673376075583,44.70078169,1338.1,1338.0,2.17e-06]
[1673376078507,46.03678169,1338.1,1338.0,2.17e-06]
[1673376078715,46.03878169,1338.1,1338.0,2.17e-06]
[1673376078939,38.56350169,1338.1,1338.0,2.17e-06]
[1673376079098,46.03678169,1338.1,1338.0,2.17e-06]
[1673376079785,46.26678169,1338.1,1338.0,2.17e-06]
[1673376082041,2.5,1338.0,1337.9,3e-07]
[1673376082251,36.35302933,1338.0,1337.9,3e-07]
[1673376082510,2.5,1337.9,1337.8,5.83e-06]
[1673376082769,30.28486064,1337.9,1337.8,5.83e-06]
[1673376083043,31.08897965,1337.9,1337.8,5.83e-06]
[1673376083196,42.90860832,1337.9,1337.8,5.83e-06]
[1673376083419,2.5,1337.8,1337.6,0.01734553]
[1673376083722,2.5,1337.8,1337.6,5.53e-06]
[1673376083723,34.45181965,1337.7,1337.6,5.53e-06]
[1673376083929,37.45381965,1337.7,1337.6,5.53e-06]
[1673376084371,37.68381965,1337.7,1337.6,5.53e-06]
[1673376084590,40.88189169,1337.7,1337.6,5.53e-06]
[1673376084808,18.22536169,1337.7,1337.6,5.53e-06]
[1673376084995,3.80411901,1337.7,1337.6,5.53e-06]
[1673376085204,18.70313901,1337.7,1337.6,5.53e-06]
[1673376085436,3.80411901,1337.7,1337.6,5.53e-06]
[1673376085717,18.70313901,1337.7,1337.6,5.53e-06]
[1673376085863,3.80411901,1337.7,1337.6,5.53e-06]
[1673376086092,7.54099,1337.8,1337.6,1.1503833]
[1673376086246,7.52699,1337.8,1337.6,1.1503833]
[1673376087665,7.52699,1337.8,1337.6,0.0773833]
[1673376088403,15.00229,1337.8,1337.6,0.0773833]
[1673376088997,15.00229,1337.8,1337.6,5.53e-06]
[1673376089747,22.47759,1337.8,1337.6,5.53e-06]
[1673376092081,23.22970901,1337.8,1337.6,5.53e-06]
[1673376093030,22.47759,1337.8,1337.6,5.53e-06]
[1673376093263,23.22970901,1337.8,1337.6,5.53e-06]
[1673376094267,26.60154091,1337.8,1337.6,5.53e-06]
[1673376095572,30.39920155,1337.8,1337.6,5.53e-06]
[1673376096448,29.2861623,1337.8,1337.6,5.53e-06]
[1673376098663,21.8128623,1337.8,1337.6,5.53e-06]
[1673376098869,29.8468623,1337.8,1337.6,5.53e-06]
[1673376099552,1.36481901,1337.8,1337.6,5.53e-06]
[1673376099718,3.0,1337.8,1337.6,5.53e-06]
[1673376101232,10.47499,1337.8,1337.6,5.53e-06]
[1673376101436,10.47499,1337.8,1337.6,1.33800553]
[1673376101437,0.052,1337.8,1337.6,1.33800553]
[1673376101705,13.7257,1338.0,1337.7,1.331]
[1673376101927,13.7257,1338.0,1337.8,16.421]
[1673376102071,13.165,1338.0,1337.8,16.494]
[1673376102277,13.165,1338.0,1337.8,9.01905]
[1673376102743,13.165,1338.0,1337.9,1.338]
[1673376103137,13.165,1338.0,1337.9,16.2868]
[1673376103491,13.165,1338.0,1337.9,11.415959]
[1673376103645,13.165,1338.0,1337.9,13.915959]
[1673376103859,13.165,1338.0,1337.9,11.415959]
[1673376104732,13.165,1338.0,1337.9,13.415959]
[1673376104949,11.1867139,1338.0,1337.9,20.890359]
[1673376105121,11.1867139,1338.0,1337.9,18.890359]
[1673376106594,11.1867139,1338.0,1337.9,11.415959]
[1673376110220,11.1887139,1338.0,1337.9,11.412959]
[1673376110540,11.1867139,1338.0,1337.9,11.415959]
[1673376110901,33.6082339,1338.0,1337.9,1.146]
[1673376111111,11.1867139,1338.0,1337.9,1.073]
[1673376112162,11.1867139,1338.0,1337.8,1.37279679]
[1673376112367,26.1345339,1338.0,1337.8,0.03479679]
[1673376112577,18.6605539,1338.0,1337.8,0.03479679]
[1673376113369,22.02272429,1338.0,1337.8,0.03479679]
[1673376113748,22.58342429,1338.0,1337.8,0.03479679]
[1673376114366,37.53124429,1338.0,1337.7,1.331]
[1673376114578,37.53124429,1338.0,1337.6,13.64886617]
[1673376114820,37.53124429,1338.0,1337.6,9.85120553]
[1673376117367,37.53124429,1338.0,1337.6,13.04784343]
[1673376118403,34.1690739,1338.0,1337.6,13.04784343]
[1673376119316,34.1690739,1338.0,1337.6,11.70984343]
[1673376119579,34.1690739,1338.0,1337.6,17.82092512]
[1673376119894,26.6950939,1338.0,1337.7,2.5]
[1673376120104,26.6950939,1338.0,1337.7,4.91375035]
[1673376120468,26.6950939,1338.0,1337.7,2.41375035]
[1673376122164,26.6950939,1338.0,1337.7,4.91375035]
[1673376122694,11.7474139,1338.0,1337.7,4.91375035]
[1673376122902,11.1867139,1338.0,1337.7,27.34527013]
[1673376123093,11.1867139,1338.0,1337.8,2.73452701]
[1673376124810,11.1867139,1338.0,1337.7,15.24946845]
[1673376125024,11.1867139,1338.0,1337.7,16.26491077]
[1673376125923,11.1867139,1338.0,1337.7,19.04713532]
[1673376126566,11.1887139,1338.0,1337.7,19.04413532]
[1673376126775,11.1867139,1338.0,1337.7,20.37713532]
[1673376126988,11.1867139,1338.0,1337.8,2.03771353]
[1673376127457,11.1867139,1338.0,1337.8,4.53771353]
[1673376127778,11.1867139,1338.0,1337.9,2.5]
[1673376127926,11.1867139,1338.0,1337.9,7.62866064]
[1673376128301,9.20847818,1338.0,1337.9,17.64692214]
[1673376128668,9.20847818,1338.0,1337.9,19.5014872]
[1673376128873,9.20847818,1338.0,1337.9,23.16244463]
[1673376129090,9.20847818,1338.0,1337.9,29.75762182]
[1673376129415,9.20847818,1338.0,1337.9,29.75764586]
[1673376129766,9.20847818,1338.0,1337.9,34.45025046]
[1673376130088,9.20847818,1338.0,1337.9,26.97586159]
[1673376130293,9.20847818,1338.0,1337.9,27.00768516]
[1673376130452,9.20847818,1338.0,1337.9,32.62754571]
[1673376130665,9.20847818,1338.0,1337.9,37.26376128]
[1673376131291,9.20847818,1338.0,1337.9,37.26377731]
[1673376132871,9.20847818,1338.0,1337.9,37.2637414]
[1673376133216,9.20847818,1338.0,1337.9,42.2616901]
[1673376133612,9.20847818,1338.0,1337.9,42.26169011]
[1673376133821,9.20847818,1338.0,1337.9,38.6017414]
[1673376134287,9.20847818,1338.0,1337.9,39.9453415]
[1673376134619,9.20847818,1338.0,1337.9,42.49203367]
[1673376134976,9.20847818,1338.0,1337.9,43.60563377]
[1673376135302,9.20847818,1338.0,1337.9,43.60597757]
[1673376135513,9.20847818,1338.0,1337.9,46.60597757]
[1673376136673,8.09586593,1338.0,1337.9,46.60597757]
[1673376137731,8.09586593,1338.0,1337.9,46.59811942]
[1673376140586,8.09586593,1338.0,1337.9,46.59811853]
[1673376143028,8.09586593,1338.0,1337.9,48.25931267]
[1673376143029,5.12898204,1338.0,1337.9,48.25931267]
[1673376144454,5.12898204,1338.0,1337.9,46.59811853]
[1673376145112,5.12898204,1338.0,1337.9,42.9453415]
[1673376145328,5.12898204,1338.0,1337.9,37.19554571]
[1673376145710,5.12898204,1338.0,1337.9,35.86454571]
[1673376146274,5.12898204,1338.0,1337.9,37.71900455]
[1673376147184,5.12898204,1338.0,1337.9,40.50073082]
[1673376147532,5.12898204,1338.0,1337.9,44.16405102]
[1673376148262,0.066,1338.1,1338.0,31.9659251]
[1673376148428,8.35525711,1338.5,1338.1,2.5]
[1673376148636,7.73085711,1338.5,1338.3,1.327]
[1673376148890,0.12545711,1338.5,1338.4,22.4148]
[1673376149105,0.12545711,1338.5,1338.4,15.0162]
[1673376149272,0.12545711,1338.5,1338.4,18.97049806]
[1673376149732,0.12545711,1338.5,1338.4,11.49889806]
[1673376149951,0.12545711,1338.5,1338.4,18.97049806]
[1673376151838,0.99045711,1338.5,1338.4,30.2397587]
[1673376165187,0.99045711,1338.5,1338.4,29.0467587]
[1673376165345,0.99045711,1338.5,1338.4,7.5446]
[1673376165556,0.99045711,1338.5,1338.4,0.073]
[1673376165767,0.99045711,1338.5,1338.4,7.4716]
[1673376165992,0.99045711,1338.5,1338.4,7.5446]
[1673376167465,0.99045711,1338.5,1338.4,28.53430664]
[1673376167815,0.99045711,1338.5,1338.4,33.54144913]
[1673376168185,11.27875475,1338.7,1338.5,2.5]
[1673376168397,11.21275475,1338.7,1338.6,26.20913064]
[1673376168712,11.21275475,1338.7,1338.6,26.31873164]
[1673376168713,0.12905475,1338.7,1338.6,26.31873164]
[1673376168922,0.12905475,1338.7,1338.6,29.6976758]
[1673376170039,0.12905475,1338.7,1338.6,31.0316758]
[1673376174693,0.12905475,1338.7,1338.6,34.0316758]
[1673376175014,4.75e-06,1338.7,1338.6,43.56462196]
[1673376175228,0.13673029,1338.8,1338.7,1.19499525]
[1673376175462,0.13673029,1338.8,1338.7,51.61325261]
[1673376175674,0.13673029,1338.8,1338.7,48.90628174]
[1673376175902,0.13673029,1338.8,1338.7,48.90624406]
[1673376176431,0.13673029,1338.8,1338.7,47.05296783]
[1673376176746,19.10533772,1339.2,1338.8,2.5]
[1673376177061,19.03933772,1339.2,1338.9,27.79176064]
[1673376177217,19.03933772,1339.2,1339.0,3.79766064]
[1673376177431,0.15023772,1339.2,1339.1,7.4677]
[1673376177791,0.15023772,1339.2,1339.1,7.5407]
[1673376178162,0.15023772,1339.2,1339.1,0.073]
[1673376178422,0.15023772,1339.2,1339.0,26.27211064]
[1673376178423,0.15223772,1339.2,1339.0,26.27211064]
[1673376178636,0.15023772,1339.2,1339.0,29.2302217]
[1673376179464,0.15023772,1339.2,1339.0,0.073]
[1673376179465,1.48823772,1339.2,1339.0,0.073]
[1673376179644,1.48823772,1339.2,1339.0,3.79766064]
[1673376179855,0.15023772,1339.2,1339.0,11.26589064]
[1673376180063,0.15023772,1339.2,1339.0,11.33889064]
[1673376180316,0.15023772,1339.2,1339.0,3.87066064]
[1673376180538,0.15023772,1339.2,1339.0,3.79766064]
[1673376180861,0.15023772,1339.2,1339.0,5.6784417]
[1673376180999,0.15023772,1339.2,1339.0,5.7514417]
[1673376182940,0.15023772,1339.2,1339.1,0.42457019]
[1673376184380,0.15023772,1339.2,1339.1,4.22223083]
[1673376184576,0.15023772,1339.2,1339.1,11.68993083]
[1673376184786,0.15023772,1339.2,1339.1,14.62086802]
[1673376185416,0.15023772,1339.2,1339.1,7.15316802]
[1673376185836,0.15023772,1339.2,1339.1,14.62086802]
[1673376187150,0.15023772,1339.2,1339.1,22.08856802]
[1673376188222,0.15023772,1339.2,1339.1,29.55626802]
[1673376193569,0.15023772,1339.2,1339.1,22.08856802]
[1673376193744,0.15023772,1339.2,1339.1,7.15316802]
[1673376194093,0.15023772,1339.2,1339.1,14.62086802]
[1673376194616,0.15023772,1339.2,1339.1,7.15316802]
[1673376194831,0.15023772,1339.2,1339.1,14.62086802]
[1673376194988,0.15023772,1339.2,1339.1,7.15316802]
[1673376195451,0.15023772,1339.2,1339.1,0.49757019]
[1673376195665,0.15023772,1339.2,1339.1,0.42457019]
[1673376196454,0.15223772,1339.2,1339.1,0.42457019]
[1673376196671,0.15023772,1339.2,1339.1,1.61757019]
[1673376197881,26.38365772,1339.2,1339.1,0.42457019]
[1673376198189,30.51342349,1339.2,1339.1,0.42457019]
[1673376198356,34.9364034,1339.2,1339.1,0.42457019]
[1673376198767,38.28870604,1339.2,1339.1,0.42457019]
[1673376199038,48.84000604,1339.2,1339.1,0.42457019]
[1673376199407,52.63766668,1339.2,1339.1,0.42457019]
[1673376199627,52.63766668,1339.2,1338.4,2.56]
[1673376199628,60.54640898,1339.2,1338.4,2.56]
[1673376199875,1.338,1338.6,1338.5,3.79766064]
[1673376200033,1.338,1338.6,1338.4,2.573]
[1673376200413,1.338,1338.6,1338.4,3.79766064]
[1673376200576,8.80859,1338.6,1338.4,3.79766064]
[1673376200791,1.338,1338.5,1338.3,0.13653086]
[1673376200986,1.338,1338.5,1338.3,0.06353086]
[1673376201194,1.338,1338.5,1338.3,3.06353086]
[1673376201437,1.338,1338.5,1338.3,5.61896095]
[1673376201672,1.338,1338.5,1338.3,5.69196095]
[1673376202212,1.338,1338.5,1338.3,3.13653086]
[1673376202348,1.338,1338.5,1338.3,3.06353086]
[1673376203402,0.066,1338.6,1338.4,6.29766064]
[1673376203612,1.8984,1338.7,1338.4,21.31308064]
[1673376203851,1.8984,1338.7,1338.4,21.99795279]
[1673376204074,1.338,1338.7,1338.4,14.52663279]
[1673376204279,16.27793,1338.7,1338.4,7.05553279]
[1673376204492,16.27793,1338.7,1338.4,0.073]
[1673376204819,16.27793,1338.7,1338.3,3.06353086]
[1673376204820,7.47104,1338.5,1338.3,3.06353086]
[1673376205028,7.47104,1338.5,1338.3,6.8611915]
[1673376205186,22.41312,1338.5,1338.3,6.9341915]
[1673376205403,22.41312,1338.5,1338.3,3.9341915]
[1673376205623,22.41312,1338.5,1338.3,3.8611915]
[1673376206577,14.94208,1338.5,1338.3,3.8611915]
[1673376206759,14.94208,1338.5,1338.3,0.06353086]
[1673376206976,16.27608,1338.5,1338.3,0.06353086]
[1673376207531,16.27808,1338.5,1338.3,0.06353086]
[1673376207722,1.336,1338.4,1338.3,0.06353086]
[1673376208596,1.328,1338.5,1338.3,0.06353086]
[1673376209395,8.79911,1338.5,1338.3,0.06353086]
[1673376209646,1.328,1338.5,1338.3,0.06353086]
[1673376211250,8.79904,1338.5,1338.3,0.06353086]
[1673376211466,1.328,1338.5,1338.3,0.06353086]
[1673376211624,8.79906,1338.5,1338.3,0.06353086]
[1673376211828,16.27012,1338.5,1338.3,0.06353086]
[1673376212250,8.79906,1338.5,1338.3,0.06353086]
[1673376212931,16.2701,1338.5,1338.3,0.06353086]
[1673376213309,23.74114,1338.5,1338.3,0.06353086]
[1673376214086,16.27008,1338.5,1338.3,0.06353086]
[1673376215457,1.328,1338.5,1338.3,0.06353086]
[1673376215674,13.3094,1338.6,1338.3,8.28930595]
[1673376215824,13.2434,1338.6,1338.3,15.83446595]
[1673376216195,13.2434,1338.6,1338.3,8.36230595]
[1673376216347,13.2434,1338.6,1338.3,15.83446595]
[1673376216557,13.2434,1338.6,1338.3,23.30662595]
[1673376217027,12.683,1338.6,1338.3,23.30662595]
[1673376218341,12.683,1338.6,1338.3,15.83446595]
[1673376218547,12.683,1338.6,1338.3,19.63212659]
[1673376218807,12.683,1338.6,1338.5,7.47104]
[1673376219019,12.683,1338.6,1338.5,7.54404]
[1673376219233,12.683,1338.6,1338.5,0.073]
[1673376219439,12.683,1338.6,1338.4,9.50752266]
[1673376219603,12.683,1338.6,1338.4,2.03621266]
[1673376219818,12.683,1338.6,1338.4,1.96321266]
[1673376220387,12.683,1338.6,1338.4,9.43468266]
[1673376220712,11.345,1338.6,1338.4,9.50768266]
[1673376221072,11.345,1338.6,1338.5,0.95076827]
[1673376221279,11.345,1338.6,1338.4,11.93476266]
[1673376221602,11.345,1338.6,1338.4,2.03621266]
[1673376221813,11.345,1338.6,1338.4,1.96321266]
[1673376223284,18.81555,1338.6,1338.4,1.95922416]
[1673376223596,11.345,1338.6,1338.4,1.95922416]
[1673376225544,11.345,1338.6,1338.5,5.18658306]
[1673376225701,11.345,1338.6,1338.5,15.23062306]
[1673376225915,11.345,1338.6,1338.5,5.25958306]
[1673376226120,11.345,1338.6,1338.5,12.73062306]
[1673376226381,11.345,1338.6,1338.5,11.53762306]
[1673376226601,11.345,1338.6,1338.5,0.073]
[1673376226780,11.345,1338.6,1338.4,1.95922416]
[1673376226964,11.345,1338.6,1338.4,13.2284848]
[1673376227174,11.345,1338.6,1338.4,13.3014848]
[1673376227597,11.345,1338.6,1338.4,20.7730848]
[1673376227835,11.345,1338.6,1338.4,5.8298848]
[1673376228222,11.345,1338.6,1338.4,13.3014548]
[1673376229284,11.345,1338.6,1338.4,5.8298848]
[1673376229906,11.345,1338.6,1338.4,13.3014348]
[1673376231646,11.345,1338.6,1338.4,20.7730348]
[1673376232578,11.345,1338.6,1338.4,13.3014348]
[1673376232950,18.8155,1338.6,1338.4,5.8298848]
[1673376233210,18.8155,1338.6,1338.4,0.073]
[1673376233211,26.286,1338.6,1338.4,0.073]
[1673376233428,26.286,1338.6,1338.3,0.06353086]
[1673376233590,26.286,1338.6,1338.3,3.8611915]
[1673376234910,26.286,1338.6,1338.4,0.28885657]
[1673376235221,21.96721629,1338.6,1338.4,0.28885657]
[1673376235519,38.24420629,1338.6,1338.4,0.28885657]
[1673376238324,41.59108502,1338.6,1338.4,0.28885657]
[1673376239071,1.328,1338.5,1338.4,0.28885657]
[1673376239267,28.42599873,1338.5,1338.4,0.28885657]
[1673376239476,35.5559645,1338.5,1338.4,0.28885657]
[1673376239691,2.5,1338.4,1338.3,0.06353086]
[1673376240012,28.1493,1338.4,1338.3,0.06353086]
[1673376240681,31.1493,1338.4,1338.3,0.06353086]
[1673376240900,37.16518568,1338.4,1338.3,0.06353086]
[1673376241286,40.21072731,1338.4,1338.3,0.06353086]
[1673376241623,40.96284632,1338.4,1338.3,0.06353086]
[1673376243401,44.30972505,1338.4,1338.3,0.05976359]
[1673376243623,40.96284632,1338.4,1338.3,0.05976359]
[1673376243790,38.01206441,1338.4,1338.3,0.05976359]
[1673376244148,34.66518568,1338.4,1338.3,0.05976359]
[1673376245461,10.91438568,1338.4,1338.3,0.05976359]
[1673376245673,8.82426667,1338.4,1338.3,0.05976359]
[1673376246007,3.5605,1338.4,1338.3,0.05976359]
[1673376246758,19.3006,1338.5,1338.3,22.51285279]
[1673376246938,0.6264,1338.6,1338.3,15.11369279]
[1673376247145,0.5604,1338.6,1338.3,15.11369279]
[1673376247518,0.5604,1338.6,1338.3,7.64153279]
[1673376248086,0.5604,1338.6,1338.3,17.62230407]
[1673376248295,8.03095,1338.6,1338.3,2.67798407]
[1673376248529,16.83983,1338.6,1338.3,0.09637279]
[1673376248933,24.31071,1338.6,1338.3,0.09637279]
[1673376249614,24.31071,1338.6,1338.3,0.05976359]
[1673376249615,1.334,1338.4,1338.3,0.05976359]
[1673376249906,16.2772,1338.4,1338.3,0.05976359]
[1673376250143,19.419656,1338.4,1338.3,0.05976359]
[1673376250356,19.980156,1338.4,1338.3,0.05976359]
[1673376250514,12.508556,1338.4,1338.3,0.05976359]
[1673376250728,5.036956,1338.4,1338.3,0.05976359]
[1673376251139,4.476456,1338.4,1338.3,0.05976359]
[1673376252401,1.336,1338.4,1338.3,0.05976359]
[1673376252613,1.334,1338.4,1338.3,0.05976359]
[1673376252862,16.2772,1338.4,1338.3,0.05976359]
[1673376253027,35.2202,1338.4,1338.3,0.05976359]
[1673376253675,37.31031901,1338.4,1338.3,0.05976359]
[1673376253923,42.95341178,1338.4,1338.3,0.05976359]
[1673376254131,45.95341178,1338.4,1338.3,0.05976359]
[1673376255094,49.75107242,1338.4,1338.3,0.05976359]
[1673376256985,50.31157242,1338.4,1338.3,0.05976359]
[1673376257649,58.65223865,1338.4,1338.3,0.05976359]
[1673376257862,55.30535992,1338.4,1338.3,0.05976359]
[1673376258128,55.53535992,1338.4,1338.3,3.59e-06]
[1673376259174,51.87857242,1338.4,1338.3,3.59e-06]
[1673376260919,50.54457242,1338.4,1338.3,3.59e-06]
[1673376262530,35.60137242,1338.4,1338.3,3.59e-06]
[1673376262705,35.37137242,1338.4,1338.3,3.59e-06]
[1673376263374,35.36930512,1338.4,1338.3,3.59e-06]
[1673376263909,41.50290512,1338.4,1338.3,3.59e-06]
[1673376264084,34.03130512,1338.4,1338.3,3.59e-06]
[1673376264304,36.36824448,1338.4,1338.3,3.59e-06]
[1673376264509,28.89664448,1338.4,1338.3,3.59e-06]
[1673376264720,21.42711178,1338.4,1338.3,3.59e-06]
[1673376264969,23.25561901,1338.4,1338.3,3.59e-06]
[1673376265119,15.0319,1338.4,1338.3,3.59e-06]
[1673376265483,22.5035,1338.4,1338.3,3.59e-06]
[1673376265659,15.0319,1338.4,1338.3,3.59e-06]
[1673376266636,29.9751,1338.4,1338.3,3.59e-06]
[1673376266848,35.053963,1338.4,1338.3,3.59e-06]
[1673376267048,27.582363,1338.4,1338.3,3.59e-06]
[1673376267586,20.110763,1338.4,1338.3,3.59e-06]
[1673376268016,27.582363,1338.4,1338.3,3.59e-06]
[1673376268188,42.525563,1338.4,1338.3,3.59e-06]
[1673376269529,35.053963,1338.4,1338.3,3.59e-06]
[1673376269749,27.582363,1338.4,1338.3,3.59e-06]
[1673376269994,20.110763,1338.4,1338.3,3.59e-06]
[1673376270437,35.053963,1338.4,1338.3,3.59e-06]
[1673376270749,20.110763,1338.4,1338.3,3.59e-06]
[1673376272440,14.4714,1338.4,1338.3,7.47216359]
[1673376272592,3.0,1338.4,1338.3,0.07300359]
[1673376272908,3.0,1338.4,1338.3,3.59e-06]
[1673376273593,17.9432,1338.4,1338.3,3.59e-06]
[1673376273905,17.9432,1338.4,1338.3,0.28442734]
[1673376274120,25.4148,1338.4,1338.3,0.28442734]
[1673376274708,17.9432,1338.4,1338.3,0.28442734]
[1673376274926,10.4716,1338.4,1338.3,0.28442734]
[1673376275326,3.0,1338.4,1338.3,0.28442734]
[1673376277263,10.4716,1338.4,1338.3,0.28442734]
[1673376277815,3.0,1338.4,1338.3,0.28442734]
[1673376279642,27.642649,1338.4,1338.3,0.28442734]
[1673376279874,12.699449,1338.4,1338.3,0.28442734]
[1673376280602,27.642649,1338.4,1338.3,0.28442734]
[1673376280951,5.227849,1338.4,1338.3,0.28442734]
[1673376281581,12.699449,1338.4,1338.3,0.28442734]
[1673376281946,5.227849,1338.4,1338.3,0.28442734]
[1673376283420,27.642649,1338.4,1338.3,0.28442734]
[1673376284507,31.44030964,1338.4,1338.3,0.28442734]
[1673376285256,23.96870964,1338.4,1338.3,0.28442734]
[1673376285467,31.44030964,1338.4,1338.3,0.28442734]
[1673376285910,23.96870964,1338.4,1338.3,0.28442734]
[1673376286221,5.227849,1338.4,1338.3,0.28442734]
[1673376286445,3.0,1338.4,1338.3,0.28442734]
[1673376287904,4.89650001,1338.5,1338.3,0.2806915]
[1673376288066,4.83050001,1338.5,1338.3,0.2806915]
[1673376289744,12.30160001,1338.5,1338.3,0.2806915]
[1673376289989,19.77270001,1338.5,1338.3,0.2806915]
[1673376290201,1.97727,1338.4,1338.3,0.2806915]
[1673376290390,9.44887,1338.4,1338.3,0.2806915]
[1673376291650,16.92047,1338.4,1338.3,0.2806915]
[1673376291855,9.44887,1338.4,1338.3,0.2806915]
[1673376292085,24.39207,1338.4,1338.3,0.2806915]
[1673376294789,16.92047,1338.4,1338.3,0.2806915]
[1673376294999,24.39207,1338.4,1338.3,0.2806915]
[1673376295253,16.92047,1338.4,1338.3,0.2806915]
[1673376295885,24.39207,1338.4,1338.3,0.2806915]
[1673376296098,16.92047,1338.4,1338.3,0.2806915]
[1673376298674,1.97727,1338.4,1338.3,0.2806915]
[1673376298917,31.86367,1338.4,1338.3,0.2806915]
[1673376299336,24.39207,1338.4,1338.3,0.2806915]
[1673376301230,16.92047,1338.4,1338.3,0.2806915]
[1673376302882,9.44887,1338.4,1338.3,0.2806915]
[1673376303111,1.97727,1338.4,1338.3,0.2806915]
[1673376306450,16.92047,1338.4,1338.3,0.2806915]
[1673376306772,24.39207,1338.4,1338.3,0.2806915]
[1673376306980,16.92047,1338.4,1338.3,0.2806915]
[1673376309859,24.39207,1338.4,1338.3,0.2806915]
[1673376310404,16.92047,1338.4,1338.3,0.2806915]
[1673376310574,30.73894873,1338.4,1338.3,0.2806915]
[1673376312503,30.73894873,1338.4,1338.3,0.27784143]
[1673376312676,32.07694873,1338.4,1338.3,0.27784143]
[1673376313633,35.87460937,1338.4,1338.3,0.27784143]
[1673376314259,36.43510937,1338.4,1338.3,0.27784143]
[1673376314920,37.18722838,1338.4,1338.3,0.27784143]
[1673376316773,36.62672838,1338.4,1338.3,0.27784143]
[1673376317013,35.87460937,1338.4,1338.3,0.27784143]
[1673376317455,36.62672838,1338.4,1338.3,0.27784143]
[1673376320628,32.82906774,1338.4,1338.3,0.27784143]
[1673376320838,11.22371901,1338.4,1338.3,0.27784143]
[1673376322523,11.22571901,1338.4,1338.3,0.27784143]
[1673376322681,11.22371901,1338.4,1338.3,0.27784143]
[1673376323302,10.4716,1338.4,1338.3,0.27784143]
[1673376324289,7.4716,1338.4,1338.3,0.27784143]
[1673376325299,7.4736,1338.4,1338.3,0.27784143]
[1673376325560,7.4716,1338.4,1338.3,0.27784143]
[1673376325772,14.9432,1338.4,1338.3,0.27784143]
[1673376326097,25.61419687,1338.4,1338.3,0.27784143]
[1673376326617,25.61619687,1338.4,1338.3,0.27784143]
[1673376326836,18.14259687,1338.4,1338.3,0.27784143]
[1673376327614,25.61419687,1338.4,1338.3,0.27784143]
[1673376328083,18.14259687,1338.4,1338.3,0.27784143]
[1673376328291,25.61419687,1338.4,1338.3,0.27784143]
[1673376329314,18.14259687,1338.4,1338.3,0.27784143]
[1673376331089,4.33600001,1338.5,1338.3,0.27784143]
[1673376331341,11.74106001,1338.5,1338.3,0.27784143]
[1673376331825,4.27000001,1338.5,1338.3,0.27784143]
[1673376333609,22.55910874,1338.5,1338.3,0.27784143]
[1673376333969,32.04357988,1338.5,1338.3,0.27784143]
[1673376334550,27.92126861,1338.5,1338.3,0.27784143]
[1673376334760,27.91926861,1338.5,1338.3,0.27784143]
[1673376334970,35.39045861,1338.5,1338.3,0.27784143]
[1673376335607,27.91926861,1338.5,1338.3,0.27784143]
[1673376335850,27.91926861,1338.5,1338.3,0.27459451]
[1673376336396,19.21223001,1338.5,1338.3,0.27459451]
[1673376336986,11.74104001,1338.5,1338.3,0.27459451]
[1673376340595,4.27000001,1338.5,1338.3,0.27459451]
[1673376340816,4.27000001,1338.5,1338.3,3.92931073]
[1673376340968,4.27000001,1338.5,1338.3,0.31120384]
[1673376341175,4.27000001,1338.5,1338.3,2.22709122]
[1673376342043,4.27000001,1338.5,1338.3,9.69915122]
[1673376342309,4.27000001,1338.5,1338.3,9.77215122]
[1673376343544,4.27000001,1338.5,1338.3,33.50649997]
[1673376343810,1.18014545,1338.5,1338.4,29.86717438]
[1673376344009,1.18014545,1338.5,1338.4,36.14742844]
[1673376344220,1.18014545,1338.5,1338.4,38.92823153]
[1673376344489,4.545e-05,1338.5,1338.4,38.92823153]
[1673376344655,4.05523647,1339.1,1338.6,0.002]
[1673376344656,0.16019153,1339.1,1338.6,0.002]
[1673376344870,0.19419153,1339.1,1339.0,5.031]
[1673376345075,0.14419153,1339.1,1339.0,33.16028522]
[1673376345328,0.14419153,1339.1,1339.0,10.22266064]
[1673376345490,0.14419153,1339.1,1339.0,16.01791064]
[1673376345849,0.14419153,1339.1,1339.0,19.1694797]
[1673376346004,0.14419153,1339.1,1339.0,26.6377297]